Cogmind - Beta 17 @@@ ROGUE MODE // 2026.07.05 @ 18:40:38 Player: pinbox Result: Destroyed by Z8-ZS6(R) with Subdweller Machine Gun Performance ------------- Evolutions (0) 0 Regions Visited (2) 400 Robots Destroyed (20) 100 Value Destroyed (351) 351 Prototype IDs (0) 0 Alien Tech Used (0) 0 Bonus (0) 0 TOTAL SCORE: 851 Bonus ------- None Cogmind --------- Core Integrity 0/250 Matter 118/300 Energy 85/100 System Corruption 0% Temperature Cool (0) Movement Rolling (105) Ox1 Location -10/Subcaves Parts ------- > --- POWER (1) -------- (None) > --- PROPULSION (2) --- Armored Wheel Armored Wheel > --- UTILITY (2) ------ Large Storage Unit Utility Shielding > --- WEAPON (2) ------- Subdweller Beam Cannon > --- INVENTORY (15) --- Light Treads Light Treads Light Treads Improved Heat Sink Sensor Array Seismic Detector Peak State ------------ > --- POWER ------------ Light Ion Engine > --- PROPULSION ------- Armored Wheel Armored Wheel > --- UTILITY ---------- Medium Storage Unit Seismic Detector > --- WEAPON ----------- Assault Rifle Assault Rifle > --- INVENTORY -------- Light Treads Light Treads Light Treads Armored Wheel Improved Heat Sink Small Storage Unit Utility Shielding Grenade Launcher [Rating: 10] Favorites ----------- Power Light Ion Engine Engine Light Ion Engine Propulsion Armored Wheel Treads Light Treads Wheel Armored Wheel Utility Seismic Detector Device Seismic Detector Storage Large Storage Unit Protection Light Armor Plating Weapon Assault Rifle Energy Cannon Subdweller Beam Cannon Ballistic Gun Assault Rifle Launcher Grenade Launcher Build | -11 -10 -10 ------- Run | Yrd Mat Sub Slots Evolved . | . . . Power . | . . . Propulsion . | . . . Utility . | . . . Weapon . | . . . Parts Attached 20 | 7 10 3 Power 2 | 1 1 . Engine 2 | 1 1 . Core . | . . . Reactor . | . . . Propulsion 7 | 2 4 1 Treads 3 | 2 1 . Leg . | . . . Wheel 4 | . 3 1 Hover . | . . . Flight . | . . . Utility 7 | 2 5 . Device 1 | 1 . . Storage 4 | 1 3 . Processor . | . . . Hackware . | . . . Protection 2 | . 2 . Artifact . | . . . Weapon 4 | 2 . 2 Energy Gun . | . . . Energy Cannon 1 | . . 1 Ballistic Gun 2 | 2 . . Ballistic Cannon . | . . . Launcher 1 | . . 1 Special Weapon . | . . . Impact Weapon . | . . . Slashing Weapon . | . . . Piercing Weapon . | . . . Special Melee Weapon . | . . . Unidentified Prototypes . | . . . Parts Lost 6 | . . 6 Power 1 | . . 1 Propulsion 1 | . . 1 Utility 1 | . . 1 Weapon 3 | . . 3 Highest Loss Streak 3 | . . 3 To Critical Strikes . | . . . Average Backups 6 | . 6 8 Power . | . . . Propulsion 2 | . 2 3 Utility 2 | . 2 3 Weapon . | . . . Tool/Special . | . . . Unused Backups 5 | . 1 4 Power 1 | . 1 . Propulsion 2 | . . 2 Utility 2 | . . 2 Weapon . | . . . Tool/Special . | . . . Average Slot Usage (%) 96 | . 98 89 Engine 12 | . 13 9 Treads 11 | . 16 . Wheel 16 | . 11 28 Device 10 | . 13 2 Storage 13 | . 13 14 Protection 3 | . . 11 Ballistic Gun 23 | . 27 12 Launcher 2 | . . 9 Peak Build Rating 10 | 7 10 10 Average Rating 8 | 5 8 9 On Entrance 5 | . 7 10 Avg Prop Armor Cover (%) . | . . . Naked Turns . | . . . Heaviest Build 90 | 15 90 31 Greatest Support 40 | 40 40 24 Greatest Overweight (x) 2 | . 2 1 Average Overweight (x) . | . . . Largest Inventory Capacity 25 | 8 25 15 Average Capacity 14 | 7 15 15 Most Carried 10 | 2 10 10 Average Carried 6 | . 6 8 Final Capacity 15 | 8 15 15 Final Carried 9 | 1 9 6 Class Distribution -------------------- 97% | Mutant Dominant Class ---------------- Mutant | -10/Materials Mutant | -10/Subcaves Resources | -11 -10 -10 ----------- Run | Yrd Mat Sub Matter Collected 723 | 269 397 57 Remotely . | . . . Salvage Created 533 | 92 408 33 Parts 33 | 5 26 2 Haulers Intercepted 2 | . 2 . Recyclers Shooed 1 | . 1 . Parts Field Recycled . | . . . Retrieved Matter . | . . . Parts Self-Destructed 2 | . . 2 Prevented . | . . . Parts Restored . | . . . Kills | -11 -10 -10 ------- Run | Yrd Mat Sub Combat Hostiles Destroyed 15 | . 11 4 Guns 11 | . 11 . AOE 4 | . . 4 Classes Destroyed 7 | 2 4 1 Tunneler 1 | 1 . . Hauler 2 | . 2 . Recycler 1 | 1 . . Watcher 1 | . 1 . Swarmer 9 | . 6 3 Grunt 5 | . 5 . Sentry 1 | . . 1 Best Kill Streak 4 | 2 4 3 Combat Bots Only 4 | . 4 3 Max Kills in Single Turn 3 | 1 2 3 Gunslinging 1 | . 1 . Exploded 3 | . . 3 Melee . | . . . Uniques/NPCs Destroyed . | . . . Combat | -11 -10 -10 -------- Run | Yrd Mat Sub Hostile Shots Fired 97 | . 63 34 Missed 22 | . 16 6 Hits 75 | . 47 28 Projectile 75 | . 47 28 Critical Strikes 2 | . 1 1 Damage Taken 1103 | . 537 566 Core 253 | . 99 154 Absorbed by Shields . | . . . Redirected to Shielding 6 | . . 6 Core Remaining (%) 100 | 100 . . Volleys Fired 54 | 4 42 8 Largest 2 | 2 2 2 Hottest 50 | 40 40 50 Shots Fired 103 | 8 84 11 Gun 95 | 8 84 3 Cannon . | . . . Launcher 8 | . . 8 Special . | . . . Kinetic 95 | 8 84 3 Thermal . | . . . Explosive 8 | . . 8 Electromagnetic . | . . . Robot Hit Streak 10 | 3 10 10 Robot Miss Streak 2 | 1 2 1 Penetration Max . | . . . Secondary Targets 2 | . 2 . Max Gunslinging Chain 1 | . 1 . Shots Hit Robots 60 | 5 47 8 Core Hits 32 | 3 22 7 Critical Kills 1 | . 1 . Critical Parts Destroyed 1 | . 1 . Critical Strikes 2 | . 2 . Destroy 2 | . 2 . Melee Attacks . | . . . Impact . | . . . Slashing . | . . . Piercing . | . . . Sneak Attacks . | . . . Combat Hostiles . | . . . Follow-up Attacks . | . . . Damage Inflicted 922 | 78 624 220 Guns 694 | 75 606 13 Cannons . | . . . Explosions 207 | . . 207 Melee . | . . . Ramming 21 | 3 18 . Kinetic 694 | 75 606 13 Thermal . | . . . Explosive 207 | . . 207 Electromagnetic . | . . . Impact . | . . . Slashing . | . . . Piercing . | . . . Highest Corruption . | . . . Average Corruption . | . . . Corruption Purged . | . . . Corruption Blocked . | . . . Overload Shots . | . . . Overflow Damage 14 | . . 14 Projectiles . | . . . Explosions 14 | . . 14 Melee . | . . . Knockbacks . | . . . Impact . | . . . Kinetic . | . . . Secondary . | . . . Self-Inflicted Damage 109 | . 8 101 Shots 6 | . . 6 Rammed 5 | 1 4 . Targets Rammed 5 | 1 4 . Kicked . | . . . Crushed . | . . . Highest Temperature 20 | . 20 . Average Temperature 5 | . 5 . Received Heat Transfer 324 | . 270 54 Siege Activations . | . . . Martial Activations . | . . . Shielding Activations . | . . . Robots Disrupted . | . . . Combat Hostiles . | . . . Robots Corrupted . | . . . Combat Hostiles . | . . . Parts Fried . | . . . Impact Corruptions . | . . . Robots Melted . | . . . Combat Hostiles . | . . . Parts Melted . | . . . Heat Transferred . | . . . Parts Sabotaged . | . . . Parts Stolen . | . . . Parts Stripped . | . . . Power Chain Reactions . | . . . Alert | -11 -10 -10 ------- Run | Yrd Mat Sub Maximum Alert Level . | . . . Low Security (%) 100 | 100 100 . Level 1 . | . . . Level 2 . | . . . Level 3 . | . . . Level 4 . | . . . Level 5 . | . . . High Security . | . . . Max Security . | . . . Peak Influence 157 | 10 157 . Initial . | . . . Average 36 | . 43 . Influence Increases 443 | 10 343 90 Destroy 0b10 Robot/C 300 | . 220 80 Destroy 0b10 Robot/NC 25 | 10 15 . Destroy Leader 56 | . 46 10 Successful Hack 31 | . 31 . Destroy Structure 1 | . 1 . Lose Combat Pursuer 30 | . 30 . Influence Decreases 443 | 10 240 193 Entered New Map 51 | . . 51 Time Decay 390 | 10 240 140 Lost Part 2 | . . 2 Squads Dispatched 1 | . 1 . Investigation . | . . . Extermination . | . . . Reinforcement 1 | . 1 . Assault . | . . . Garrison . | . . . Intercept . | . . . Searches Triggered . | . . . Construction Impeded . | . . . Haulers Reinforced . | . . . Active Scanning Responses . | . . . Cargo Convoy Interrupts . | . . . Stealth | -11 -10 -10 --------- Run | Yrd Mat Sub Distress Signals 1 | . 1 . Communications Jammed . | . . . Distress Signals . | . . . Times Spotted 25 | . 18 7 Peak Tracking Total 6 | . 6 3 Tactical Retreats 1 | . 1 . Traps | -11 -10 -10 ------- Run | Yrd Mat Sub Traps Triggered 4 | . 4 . Indirectly . | . . . Trap Hack Attempts . | . . . Triggered . | . . . Disarmed . | . . . Reprogrammed . | . . . Reused . | . . . Traps Extracted . | . . . Installed . | . . . Triggered . | . . . Machines | -11 -10 -10 ---------- Run | Yrd Mat Sub Machines Disabled . | . . . Max in Single Turn . | . . . Machines Repaired . | . . . Machines Dismantled . | . . . Machines Sabotaged . | . . . Overloaded Fab Kills . | . . . Hacking | -11 -10 -10 --------- Run | Yrd Mat Sub Machines Accessed 6 | . 6 . Terminals 6 | . 6 . Fabricators . | . . . Repair Stations . | . . . Recycling Units . | . . . Scanalyzers . | . . . Garrison Access . | . . . Total Hacks 17 | . 17 . Successful 9 | . 9 . Failed 8 | . 8 . Catastrophic 1 | . 1 . Database Lockouts . | . . . Manual 12 | . 12 . Terminals 17 | . 17 . Fabricators . | . . . Repair Stations . | . . . Recycling Units . | . . . Scanalyzers . | . . . Garrison Access . | . . . Terminal Hacks 7 | . 7 . Scanalyzer Index 1 | . 1 . Locate Traps 1 | . 1 . Dispatch Records 1 | . 1 . Zone Layout 4 | . 4 . Fabricator Hacks . | . . . Repair Station Hacks . | . . . Recycling Unit Hacks . | . . . Scanalyzer . | . . . Garrison Access Hacks . | . . . Unauthorized Hacks 2 | . 2 . Terminals 2 | . 2 . Botnet 2 | . 2 . Fabricators . | . . . Repair Stations . | . . . Recycling Units . | . . . Scanalyzers . | . . . Garrison Access . | . . . Data Cores Recovered . | . . . Used . | . . . Hacking Detections 6 | . 6 . Full Trace Events . | . . . Feedback Events . | . . . Feedback Blocked . | . . . Robot Schematics Acquired . | . . . Robots Built . | . . . Authchips . | . . . Time . | . . . Total Robot Build Rating . | . . . Part Schematics Acquired . | . . . Parts Built . | . . . Authchips . | . . . Time . | . . . Total Part Build Rating . | . . . Part Studies Acquired . | . . . Parts Repaired . | . . . Time . | . . . Parts Recycled . | . . . Recycled Matter . | . . . Retrieved Matter . | . . . Retrieved Components . | . . . Parts Scanalyzed . | . . . Part Schematics Acquired . | . . . Parts Damaged . | . . . Bothacking | -11 -10 -10 ------------ Run | Yrd Mat Sub Used RIF Installer . | . . . Robots Hacked . | . . . Non-combat . | . . . Combat . | . . . Robot Hacks Applied . | . . . Relay Couplers Released . | . . . Fabnet Peak Effective % . | . . . Robots Rewired . | . . . Allies Hacked . | . . . Hacks Repelled . | . . . Allies | -11 -10 -10 -------- Run | Yrd Mat Sub Total Allies . | . . . Largest Group . | . . . Highest-Rated Group . | . . . Highest-Rated Ally . | . . . Total Orders . | . . . Ally Attacks . | . . . Total Damage . | . . . Kills . | . . . Allies Corrupted . | . . . Allies Melted . | . . . Intel | -11 -10 -10 ------- Run | Yrd Mat Sub Active Infowar (turns) 821 | 52 703 66 Seismic 821 | 52 703 66 Robot Analysis Total . | . . . Derelict Logs Recovered 2 | . . 2 Drone Launches . | . . . Drone Recoveries . | . . . Exploration | -11 -10 -10 ------------- Run | Yrd Mat Sub Turns Passed 1400 | 152 887 361 Spaces Moved 845 | 82 486 277 Core 3 | 3 . . Treads 264 | 79 185 . Legs . | . . . Wheels 578 | . 301 277 Hover . | . . . Flight . | . . . Fastest Speed 50 | 50 90 90 Average Speed 130 | 155 142 101 Slowest Speed 320 | 160 320 105 Overloaded Moves . | . . . Propulsion Burnouts . | . . . Robots Hopped . | . . . Potential Cave-ins . | . . . Cave-ins Triggered . | . . . Exploration Rate (%) 40 | 4 85 32 Regions Visited 2 Branch Regions 1 Pre-discovered Areas . | . . . Known Exits Taken . | . . . Unknown Exits Taken 2 | 1 1 . Scrap Searched . | . . . Spaces Dug . | . . . Terrain Destroyed 30 | . . 30 Melee . | . . . Projectile . | . . . AOE 30 | . . 30 Terrain Rammed . | . . . Walls Destroyed . | . . . Machines Disabled . | . . . Actions | -11 -10 -10 --------- Run | Yrd Mat Sub Total 1036 | 95 595 346 Wait 66 | . 13 53 Move 843 | 81 485 277 Hop . | . . . Pick Up 11 | 2 9 . Fast Attach 24 | 6 17 1 Attach 11 | 1 5 5 Detach 10 | . 8 2 Swap 3 | . 3 . Drop 9 | . 9 . Fire 54 | 4 42 8 Melee . | . . . Ram 3 | . 3 . Kick . | . . . Crush 2 | 1 1 . Escape Stasis . | . . . Rewire . | . . . Trap . | . . . Miscellaneous . | . . . Route ------- -11/Scrapyard -10/Materials (discovered 6 exits: [*Mat x3] / [*Min x2] / [*Sub]) -10/Subcaves (discovered 2 exits: Mat / [*Scr]) History --------- Turn | Location | Event 39 | -11/Scrapyard | Discovered new exit (range 15) 153 | -11/Scrapyard | Entered Materials 314 | -10/Materials | Build established: Mutant 460 | -10/Materials | Discovered new exit (range 14) 498 | -10/Materials | Discovered new exit (range 15) 792 | -10/Materials | Discovered new exit (range 9) 895 | -10/Materials | Discovered new exit (range 15) 979 | -10/Materials | Discovered new exit (range 14) 1029 | -10/Materials | Discovered new exit (range 10) 1040 | -10/Materials | Entered Subcaves 1041 | -10/Subcaves | Approached by a straggling Scientist 1044 | -10/Subcaves | Learned Materials emergency access door positions 1134 | -10/Subcaves | Identified exit to Materials 1282 | -10/Subcaves | A swath of the cavern ceiling suddenly collapsed 1337 | -10/Subcaves | Lost 3 parts (1p2w) 1369 | -10/Subcaves | Core integrity fell below 50% 1381 | -10/Subcaves | Core integrity fell below 20% 1397 | -10/Subcaves | Lost 3 parts (1n1u1w) 1401 | -10/Subcaves | Destroyed by Z8-ZS6(R) with Subdweller Machine Gun Last Messages --------------- 01302_ Assault Rifle destroyed. 01302_ Destroyed Assault Rifle. 01306_ Assault Rifle destroyed. 01309_ Critical hit (Burn: +37). 01312_ Subatomizers dissect the Sub. Power Source. 01314_ Y-45 Defender destroyed. 01318_ Acquired 7 matter. 01320_ The unstable cave ceiling collapses. 01324_ Subatomizers dissect the Sub. Power Source. 01335_ Acquired 12 matter. 01340_ Grenade Launcher destroyed. 01346_ Acquired 6 matter. 01350_ Acquired 12 matter. 01362_ Lgt. Armor Plating destroyed. 01366_ Arm. Wheel destroyed. 01374_ 6J-YF6(R) suffers critical hit (Destroy). 01378_ 7F-WWC(O) puts together Sub. Beam Cannon. 01400_ Acquired Sub. Beam Cannon. Map ----- +----------------------------------------------------+ | ?????????????????????????????????????????????????? | | ?????????????????????????????????????????????????? | | ?????????????????????????????????????????????????? | | ?????????????????????????????????????????????????? | | ?????????????????????????????????????????????????? | | ?????????????????????????????????????????????????? | | ?????????????????????????????????????????????????? | | ?????????????????????????????????????????????????? | | ?????????????????????????????????????????????????? | | ?????????????????????????????????????????????????? | | ##???????????????#####??####?????????????????????? | | ###???#####???### #### #######???????????????? | | #??## %##### % ##??????????????? | | &##?# % #??????????????? | | !###?# ## ### #??????????????? | | * ### % ## ##?## #??????????????? | | ## ## R #???# ##?????????????? | | # ## R##?### #?????????????? | | # #### ##?????????????? | | ## ## ## ##??????????????? | | ?# ## ## #### #???????????????? | | # ###### ## ## ##??##???????????????? | | ## #???## ### ##??????????????????? | | ?########## ##?## ### #?????????????? | | ??#### ###### #?????????????? | | ?## ## @ #???????????? | | ?# ## & #?????????? | | ?## ### ### ### #?????????? | | ??## #??## ## ##?# " ##???# #?????????? | | ???###????##### ####??#"" ##?????? ??????????? | | ??????????????# ###??## #???????? ??????????? | | ?????????????## #???# #????????????????????? | | ?????????????# #???# ###????????????????????? | | ?????????????# ##???# #??????????????????????? | | ?????????????######????#"#???????????????????????? | | ???????????????????????"#????????????????????????? | | ?????????????????????????????????????????????????? | | ?????????????????????????????????????????????????? | | ?????????????????????????????????????????????????? | | ?????????????????????????????????????????????????? | | ???????????????????????????